bitfinex/quotes_ETHUSD_20220117
["timestamp","ask_amount","ask_price","bid_price","bid_amount"]
[1642390325858,1.0,3309.7,3308.3,2.9162587]
[1642390326058,0.27639993,3309.9,3308.5,1.28743215]
[1642390326257,0.00113685,3309.0,3308.6,2.9162587]
[1642390326459,0.00113685,3309.0,3308.6,2.91739554]
[1642390326656,1.13325647,3309.0,3308.6,2.91739554]
[1642390326957,1.13325647,3309.0,3308.6,0.00113684]
[1642390327347,1.13325647,3309.0,3308.7,1.38586856]
[1642390328150,0.00113685,3309.0,3308.8,2.76325277]
[1642390329756,0.00113685,3309.0,3308.4,1.1347]
[1642390329757,10.8,3308.8,3308.1,1.5107]
[1642390329954,0.01278955,3308.9,3307.4,0.120883]
[1642390329955,0.01298161,3308.2,3307.4,0.120883]
[1642390330351,1.3,3308.7,3307.4,0.120883]
[1642390330553,0.3,3308.7,3307.4,0.070883]
[1642390330760,0.3,3308.7,3307.5,1.42100502]
[1642390330970,0.30113684,3308.8,3307.5,1.42100502]
[1642390331161,0.30113684,3308.8,3307.6,0.00568424]
[1642390331363,0.30113684,3308.8,3308.5,1.47441856]
[1642390331364,4.4049784,3308.7,3308.5,1.47441856]
[1642390331560,4.4049784,3308.7,3307.6,0.00568424]
[1642390331561,1.0,3308.6,3307.6,0.00568424]
[1642390331766,0.7558198,3308.3,3307.6,0.00568424]
[1642390331961,0.75586,3308.2,3307.5,0.00625266]
[1642390332361,0.75586,3308.2,3307.7,1.24704604]
[1642390332562,0.75586,3308.2,3307.5,0.00625266]
[1642390332761,0.75586,3308.2,3307.8,0.00454739]
[1642390332963,0.3,3308.1,3307.2,0.00795793]
[1642390333161,0.75586,3308.2,3307.2,0.00795793]
[1642390333362,0.75586,3308.2,3307.1,4.55575793]
[1642390333561,0.00511581,3308.1,3307.1,4.49789486]
[1642390333963,0.00454739,3308.0,3307.9,3.02894839]
[1642390334166,0.00454739,3308.0,3307.1,4.49789486]
[1642390334167,3.45480011,3308.0,3307.1,4.49789486]
[1642390334417,3.75480011,3308.0,3305.5,0.434]
[1642390334614,0.0128464,3307.3,3305.5,1.1433]
[1642390334813,20.86187896,3307.9,3307.0,0.00113685]
[1642390335014,17.59,3307.7,3307.0,0.00113685]
[1642390335212,1.61746099,3307.6,3307.3,1.16982794]
[1642390335413,17.59,3307.5,3307.3,1.16982794]
[1642390335612,17.89170527,3307.5,3307.0,0.00113685]
[1642390335813,2.51327685,3307.4,3307.0,0.00113685]
[1642390336013,6.25,3307.1,3305.0,1.0]
[1642390336215,17.59,3307.2,3305.1,4.1706]
[1642390336514,0.47517553,3307.3,3305.1,4.18140004]
[1642390336515,19.19,3307.1,3305.1,4.18140004]
[1642390336713,1.49773176,3307.0,3305.1,4.18140004]
[1642390336916,0.7561,3306.9,3305.1,4.18140004]
[1642390337113,18.19,3307.1,3305.1,4.18140004]
[1642390337114,0.3,3306.8,3305.2,0.75607]
[1642390337313,0.3,3306.8,3305.1,4.03140004]
[1642390337513,0.6,3306.8,3305.3,0.0096632]
[1642390337817,1.3561601,3306.8,3305.2,0.01023162]
[1642390338014,18.9461601,3306.8,3306.7,1.14624071]
[1642390338254,18.9461601,3306.8,3305.2,0.01023162]
[1642390338454,1.3561601,3306.8,3306.7,0.00170527]
[1642390338656,1.3561601,3306.8,3305.2,0.01023162]
[1642390338657,0.55,3306.8,3305.2,0.01023162]
[1642390339054,2.86225657,3307.2,3305.2,0.01023162]
[1642390339055,0.3,3307.0,3305.2,0.01023162]
[1642390339252,0.3,3307.0,3305.2,0.44423162]
[1642390339253,0.3,3306.8,3305.2,0.44423162]
[1642390339457,0.3,3307.0,3305.3,2.89926671]
[1642390339654,0.00113685,3307.2,3305.4,2.71580331]
[1642390339856,0.00113685,3307.2,3305.8,0.01241986]
[1642390340058,0.00113685,3307.2,3305.9,0.434]
[1642390340365,0.00113685,3307.2,3306.0,0.00568423]
[1642390340556,0.00113685,3307.2,3306.1,2.37970918]
[1642390340755,3.00113685,3307.2,3306.1,2.37970918]
[1642390340957,3.00113685,3307.2,3306.2,0.00454739]
[1642390342032,1.95038,3308.4,3306.3,1.18985]
[1642390342217,3.9743,3308.7,3306.6,0.01201576]
[1642390342416,0.00113685,3307.4,3306.7,0.45106005]
[1642390342613,0.00113685,3307.4,3306.8,6.97204301]
[1642390342813,0.00113685,3307.4,3306.9,1.6826]
[1642390343015,0.00113685,3307.4,3306.9,1.68430527]
[1642390343216,0.00113685,3307.4,3307.0,3.74423685]
[1642390343412,0.00113685,3307.4,3307.1,2.62288103]
[1642390343613,0.00113685,3307.4,3307.2,2.88035298]
[1642390343814,0.00113685,3307.4,3307.3,7.684]
[1642390344018,6.95515644,3309.4,3307.3,7.684]
[1642390344019,5.4106,3309.4,3307.4,3.7]
[1642390344215,5.4106,3309.4,3307.5,2.88035298]
[1642390344416,0.44609572,3309.8,3307.8,0.75552]
[1642390344417,0.0073895,3308.7,3307.8,0.75552]
[1642390344619,0.0073895,3308.7,3308.6,1.69901165]
[1642390344818,0.00682108,3308.6,3307.4,4.05705298]
[1642390345017,0.00682108,3308.6,3307.4,1.1767]
[1642390345218,0.00625265,3308.5,3307.4,1.1767]
[1642390345675,0.00568423,3308.4,3307.4,1.1767]
[1642390345861,0.00568423,3308.4,3307.7,2.94316608]
[1642390346063,0.00511581,3308.3,3307.7,2.94316608]
[1642390346361,0.00511581,3308.3,3307.0,3.74423685]
[1642390346563,0.00454738,3308.2,3307.0,3.74423685]
[1642390346763,1.19437738,3308.2,3307.1,0.00170527]
[1642390347069,17.59397896,3308.1,3307.1,0.00170527]
[1642390347271,17.59397896,3308.1,3304.6,3.02345]
[1642390347272,0.01243268,3307.2,3304.6,3.02345]
[1642390347469,0.01235468,3306.0,3305.0,0.68436838]
[1642390347666,0.01235468,3306.0,3304.0,0.05005]
[1642390347667,0.0127329,3305.1,3304.0,0.05005]
[1642390347865,0.434,3305.0,3304.0,0.05005]
[1642390348064,0.434,3305.0,3304.1,5.49732224]
[1642390348263,0.134,3305.0,3304.1,0.00568424]
[1642390348465,0.434,3305.7,3304.9,1.27753698]
[1642390348665,0.00454738,3305.9,3304.9,1.27753698]
[1642390348864,0.00284211,3305.6,3305.0,4.126]
[1642390349063,0.75623,3306.5,3305.0,4.126]
[1642390349064,0.00397896,3305.8,3305.0,4.126]
[1642390349264,0.00227369,3305.5,3305.0,4.126]
[1642390349508,0.00341054,3305.7,3305.1,1.52614845]
[1642390349812,0.3,3306.1,3305.1,1.52614845]
[1642390349813,0.00284211,3305.6,3305.1,1.52614845]
[1642390350109,1.47750192,3305.8,3304.2,0.00511582]
[1642390350110,0.434,3305.5,3304.2,0.00511582]
[1642390350304,0.7565033,3305.3,3304.2,0.00511582]
[1642390350504,0.734,3305.3,3304.2,0.00511582]
[1642390350703,1.034,3305.3,3304.2,0.00511582]
[1642390350904,1.36531551,3305.1,3304.6,1.44879835]
[1642390351206,1.034,3305.3,3304.7,0.0022737]
[1642390352005,0.6,3305.3,3305.2,1.27416767]
[1642390352205,0.3,3305.3,3305.2,1.27416767]
[1642390352409,0.00113684,3305.3,3305.2,1.27416767]
[1642390352606,3.0,3305.6,3305.2,1.27416767]
[1642390352905,0.00113685,3305.5,3305.2,1.27416767]
[1642390356170,0.00113685,3305.5,3305.2,1.22416767]
[1642390362261,2.70113685,3305.6,3305.2,1.22416767]
[1642390362462,2.70113685,3305.6,3305.3,0.00113685]
[1642390363362,2.70113685,3305.6,3304.5,0.00568423]
[1642390364161,1.30525311,3305.3,3304.7,1.47375223]
[1642390364422,2.70113685,3305.6,3304.7,1.47375223]
[1642390364612,2.70113685,3305.6,3305.2,1.43456495]
[1642390364809,2.40113685,3305.6,3305.2,1.43456495]
[1642390365010,2.40113685,3305.6,3305.3,0.00113685]
[1642390365612,1.29254816,3305.4,3305.3,0.00113685]
[1642390365813,2.70113685,3305.6,3304.5,0.00568423]
[1642390366009,0.3,3305.5,3304.5,0.00568423]
[1642390366211,2.40113685,3305.6,3304.5,0.00568423]
[1642390366411,2.40113685,3305.6,3305.0,1.13976871]
[1642390366810,2.40113685,3305.6,3305.1,0.00227369]
[1642390367011,2.40113685,3305.6,3305.1,1.29856339]
[1642390367413,2.40113685,3305.6,3305.2,0.00170527]
[1642390367414,2.35113685,3305.6,3305.2,0.00170527]
[1642390367813,2.35113685,3305.6,3305.5,1.46563848]
[1642390368264,2.35113685,3305.6,3305.2,0.00170527]
[1642390369263,2.35113685,3305.6,3305.4,1.2202392]
[1642390369664,2.35113685,3305.6,3305.2,0.00170527]
[1642390369866,0.3,3305.5,3305.2,0.00170527]
[1642390370064,2.35113685,3305.6,3304.5,0.00568423]
[1642390370266,0.3,3305.5,3304.5,0.00568423]
[1642390370466,2.35113685,3305.6,3304.5,0.00568423]
[1642390370670,0.3,3305.5,3304.5,0.00568423]
[1642390370865,2.35113685,3305.6,3304.5,0.00568423]
[1642390370866,3.45444259,3305.6,3304.5,0.00568423]
[1642390371566,1.3,3305.5,3304.5,0.00568423]
[1642390371766,1.3,3305.5,3304.5,1.2045034]
[1642390372025,2.35113685,3305.6,3304.7,1.24872764]
[1642390372423,2.35113685,3305.6,3304.8,0.00397896]
[1642390373020,2.35113685,3305.6,3305.2,1.1039953]
[1642390373421,2.35113685,3305.6,3305.3,0.00113685]
[1642390374320,2.30113685,3305.6,3305.3,0.00113685]
[1642390376461,10.01767481,3305.5,3304.7,0.434]
[1642390376664,2.85639855,3305.4,3304.0,0.05005]
[1642390376862,2.85639855,3305.4,3304.8,0.00284211]
[1642390376863,0.75652,3305.3,3304.8,0.00284211]
[1642390377062,0.3,3305.2,3304.8,0.00284211]
[1642390377461,0.7564781,3305.3,3304.8,0.00284211]
[1642390377661,0.3,3305.2,3304.9,1.30292162]
[1642390378062,0.7564781,3305.3,3305.0,0.00170527]
[1642390378063,1.3564781,3305.3,3305.0,0.00170527]
[1642390378661,0.7564781,3305.3,3305.0,0.00170527]
[1642390378863,2.30113685,3305.6,3305.2,1.09380833]
[1642390382131,2.30113685,3305.6,3305.3,0.01921839]
[1642390382431,2.30113685,3305.6,3305.3,0.434]
[1642390382831,2.8416031,3305.5,3305.3,0.434]
[1642390383031,2.30113685,3305.6,3305.0,0.00170527]
[1642390383264,0.3,3305.5,3305.0,0.00170527]
[1642390383465,0.3,3305.5,3304.9,0.00227369]
[1642390383768,2.60113685,3305.6,3304.9,0.00227369]
[1642390383769,2.30113685,3305.6,3304.9,0.00227369]
[1642390383970,2.30113685,3305.6,3305.2,1.22882475]
[1642390384165,3.1416031,3305.5,3304.0,0.60180613]
[1642390384365,3.1416031,3305.5,3303.6,1.51443094]
[1642390384366,0.01245663,3304.1,3303.6,1.51443094]
[1642390384763,0.434,3304.7,3303.4,0.01377191]
[1642390384965,0.434,3304.7,3303.1,1.32820285]
[1642390384966,9.684,3304.7,3303.1,1.32820285]
[1642390385163,2.324264,3304.6,3304.1,1.54567853]
[1642390385364,0.7568537,3304.2,3304.1,1.54567853]
[1642390385567,1.0568537,3304.2,3304.1,1.54567853]
[1642390385784,1.3568537,3304.2,3304.1,1.54567853]
[1642390385969,17.89,3304.1,3302.9,2.8416031]
[1642390386166,17.89,3304.1,3302.8,4.1331]
[1642390386369,17.89,3304.1,3303.1,0.01023162]
[1642390386566,0.75682,3303.8,3302.8,7.84829162]
[1642390386767,0.7567809,3304.0,3302.8,7.84829162]
[1642390387010,0.00341054,3303.7,3303.0,1.36166032]
[1642390387211,0.00454738,3303.9,3303.6,1.18229322]
[1642390387411,0.00284211,3303.6,3302.9,1.55059968]
[1642390387610,0.00397896,3303.8,3302.9,1.45059968]
[1642390387812,0.00227369,3303.5,3302.9,1.45059968]
[1642390388009,0.00341054,3303.7,3303.6,1.14278576]
[1642390388213,17.59,3304.0,3303.6,1.14278576]
[1642390388214,17.89,3304.0,3303.6,1.14278576]
[1642390388410,0.75682,3303.8,3303.6,1.09278576]
[1642390389411,0.00454738,3303.9,3303.6,1.09278576]
[1642390389812,0.00397896,3303.8,3303.6,1.09278576]
[1642390390014,0.00397896,3303.8,3302.9,0.00113685]
[1642390390215,0.76024194,3303.7,3302.9,0.00113685]
[1642390390414,17.89,3303.6,3302.9,0.00113685]
[1642390390670,18.19284211,3303.6,3302.9,0.00113685]
[1642390390862,18.19284211,3303.6,3301.5,2.29048821]
[1642390390863,17.59,3303.3,3301.5,2.29048821]
[1642390391065,0.0390552,3302.1,3301.5,2.29048821]
[1642390391262,0.0390552,3302.1,3301.3,4.72568878]
[1642390391263,17.59,3301.8,3301.3,1.67170449]
[1642390391570,0.434,3301.7,3301.3,1.67170449]
[1642390391761,0.434,3301.7,3301.4,0.00852635]
[1642390391960,0.434,3301.7,3301.0,0.51]
[1642390391961,0.01207186,3301.5,3301.0,0.51]
[1642390392162,0.434,3301.4,3301.0,0.51]
[1642390392360,0.434,3301.4,3301.1,0.00170527]
[1642390392765,0.434,3301.4,3301.2,2.28220788]
[1642390393060,3.0,3301.8,3301.2,2.28220788]
[1642390393061,3.02934,3302.5,3301.4,7.75]
[1642390393260,4.40052566,3302.9,3302.1,0.01222824]
[1642390393261,1.37095496,3302.9,3302.1,0.01222824]
[1642390393461,0.757043,3302.7,3302.1,0.01222824]
[1642390393663,1.0545345,3302.9,3302.1,0.01222824]
[1642390393860,2.81556812,3302.8,3302.1,0.01222824]
[1642390394060,5.15716481,3303.3,3301.3,7.66190527]
[1642390394265,0.00738951,3302.9,3301.4,2.81556812]
[1642390394524,0.7570836,3302.7,3300.8,0.44648225]
[1642390394717,0.7570836,3302.7,3301.1,0.4005648]
[1642390394718,0.01261887,3302.3,3301.1,0.4005648]
[1642390394920,17.59,3302.6,3302.0,1.50068429]
[1642390394921,0.00682108,3302.6,3302.0,1.50068429]
[1642390395119,0.00454739,3302.2,3302.0,1.50068429]
[1642390395319,0.00625266,3302.5,3302.0,1.50068429]
[1642390395519,0.00397896,3302.1,3302.0,1.50068429]
[1642390395719,6.0858662,3303.2,3302.0,1.50068429]
[1642390395720,0.00568423,3302.4,3302.0,1.50068429]
[1642390395920,0.00397896,3302.1,3302.0,1.50068429]
[1642390396123,1.32277949,3302.9,3302.0,1.50068429]
[1642390396124,0.00511581,3302.3,3302.0,1.50068429]
[1642390396319,0.00397896,3302.1,3302.0,1.50068429]
[1642390396519,0.00454739,3302.2,3302.0,1.50068429]
[1642390396720,0.00397896,3302.1,3302.0,1.50068429]
[1642390397024,0.0073895,3302.1,3302.0,1.50068429]
[1642390397219,0.0073895,3302.1,3301.2,8.0584]
[1642390397619,17.59,3302.6,3301.2,8.0584]
[1642390397620,0.00341054,3302.0,3301.2,8.0584]
[1642390398021,0.00284212,3301.9,3301.2,8.0584]
[1642390398260,0.00284212,3301.9,3301.7,1.53210395]
[1642390398460,0.7571898,3302.2,3301.7,1.53210395]
[1642390398461,0.00227369,3301.8,3301.7,1.53210395]
[1642390400861,0.00227369,3301.8,3301.7,1.89610395]
[1642390401463,0.00227369,3301.8,3301.7,7.39610395]
[1642390401663,0.00227369,3301.8,3301.7,8.69610395]
[1642390402319,3.00227369,3301.8,3301.7,12.49610395]
[1642390402512,2.95108033,3303.6,3301.8,7.55]
[1642390402715,20.54108033,3303.6,3302.8,1.2132281]
[1642390403013,0.0096632,3303.5,3302.8,1.2132281]
[1642390403412,0.00909478,3303.4,3302.9,0.364]
[1642390403814,0.00852635,3303.3,3303.0,2.92629784]
[1642390404013,0.00852635,3303.3,3303.1,0.364]
[1642390404214,0.00795793,3303.2,3303.1,0.364]
[1642390405964,0.00795793,3303.2,3302.6,7.5812]
[1642390406460,0.00738951,3303.1,3302.6,7.5812]
[1642390406762,0.00682108,3303.0,3302.6,8.78250715]
[1642390407159,0.00625266,3302.9,3302.6,8.78250715]
[1642390407563,0.00568424,3302.8,3302.6,3.7628]
[1642390407762,0.00568424,3302.8,3302.6,4.1268]
[1642390407963,0.00511581,3302.7,3302.6,4.1268]
[1642390408762,0.00511581,3302.7,3302.6,5.64473597]
[1642390410319,0.00511581,3302.7,3302.6,4.1268]
[1642390410914,0.00511581,3302.7,3302.6,3.7628]
[1642390411313,5.75511581,3302.7,3302.6,3.7628]
[1642390411515,17.59,3302.6,3302.0,4.0861]
[1642390411715,1.85023603,3302.7,3302.0,4.0861]
[1642390411716,1.52014846,3302.7,3302.0,4.0861]
[1642390411914,1.52014846,3302.7,3301.8,3.8671]
[1642390411915,0.00397897,3302.5,3301.8,3.8671]
[1642390412116,2.8166577,3302.6,3301.8,3.8671]
[1642390412117,2.83406258,3302.6,3301.8,3.8671]
[1642390412314,0.00341054,3302.4,3301.8,3.8671]
[1642390412513,1.0,3302.5,3301.8,3.8671]
[1642390412514,0.60397897,3302.5,3301.8,3.8671]
[1642390412718,1.51186487,3301.9,3301.8,3.8671]
[1642390412923,1.81186487,3301.9,3301.2,3.904]
[1642390413169,19.40186487,3301.9,3301.2,3.904]
[1642390413360,0.3,3301.9,3301.3,0.00284212]
[1642390413558,1.08923479,3302.0,3301.3,0.00284212]
[1642390413958,1.08923479,3302.0,3301.3,1.54978666]
[1642390414360,1.08923479,3302.0,3301.4,0.00227369]
[1642390414559,17.59,3301.9,3301.4,0.00227369]
[1642390415258,17.59,3301.9,3301.4,0.4005648]
[1642390415466,17.59,3301.9,3300.9,0.121068]
[1642390415467,0.0123595,3301.5,3300.9,0.121068]
[1642390415662,0.364,3302.2,3301.1,2.8166577]
[1642390415961,0.364,3302.2,3301.2,3.7491]
[1642390415962,0.77009219,3301.9,3301.2,3.7491]
[1642390416361,0.00284212,3301.8,3301.2,3.7491]
[1642390416760,0.0022737,3301.7,3301.2,3.7491]
[1642390417214,0.00170527,3301.6,3301.2,3.7491]
[1642390418019,2.81484626,3302.2,3301.2,3.7491]
[1642390418020,0.00113685,3301.5,3301.2,3.7491]
[1642390418417,18.35174369,3302.1,3301.2,3.7491]
[1642390418716,0.76118897,3302.0,3301.6,1.3051456]
[1642390418919,0.00397897,3302.0,3301.6,1.3051456]
[1642390419116,1.8116945,3302.9,3301.6,1.3051456]
[1642390419117,0.00341055,3301.9,3301.7,0.73674463]
[1642390419517,0.00284212,3301.8,3301.6,1.3051456]
[1642390419916,0.0022737,3301.7,3301.6,1.3051456]
[1642390420522,0.0022737,3301.7,3301.6,1.6691456]
[1642390420761,0.0022737,3301.7,3301.6,4.56009418]
[1642390420962,0.0022737,3301.7,3301.6,4.63070303]
[1642390421162,0.0022737,3301.7,3301.6,12.23070303]
[1642390421360,0.0022737,3301.7,3301.6,10.53725423]
[1642390421562,0.0022737,3301.7,3301.6,13.3876256]
[1642390421960,0.0022737,3301.7,3301.6,10.53725423]
[1642390422159,0.0022737,3301.7,3301.6,13.32156591]
[1642390422961,3.0022737,3301.7,3301.6,13.32156591]
[1642390424064,3.0022737,3301.7,3301.6,2.93725423]
[1642390425422,3.0022737,3301.7,3301.6,1.6691456]
[1642390427120,3.0022737,3301.7,3301.6,5.0691456]
[1642390428170,3.0022737,3301.7,3301.6,1.6691456]
[1642390428364,3.0022737,3301.7,3301.6,4.4137024]
[1642390428561,3.0022737,3301.7,3301.6,1.6691456]
[1642390429361,2.7522737,3301.7,3301.6,4.6691456]
[1642390429762,0.7569113,3303.5,3301.7,5.7]
[1642390429964,0.7569113,3303.5,3301.8,0.364]
[1642390430163,0.00682108,3302.9,3301.8,0.364]
[1642390430563,0.00625266,3302.8,3301.8,0.364]
[1642390430967,19.75012414,3303.3,3301.8,0.364]
[1642390430968,1.33381946,3303.2,3302.5,1.2955678]
[1642390431363,1.33666158,3303.2,3302.5,1.2955678]
[1642390432010,2.16012414,3302.7,3302.5,1.2955678]
[1642390432210,2.16012414,3302.7,3302.3,0.364]
[1642390432710,2.16012414,3302.7,3302.4,0.00170527]
[1642390433111,2.16012414,3303.1,3302.4,0.00170527]
[1642390433310,2.16012414,3303.1,3302.5,1.26496453]
[1642390433311,3.0,3302.7,3302.5,1.26496453]
[1642390434012,2.95,3302.7,3302.5,1.26496453]
[1642390435411,2.95,3302.7,3302.4,0.00170527]
[1642390436066,2.95,3302.7,3302.4,2.73919287]
[1642390436067,2.16012414,3302.6,3302.4,2.73919287]
[1642390436260,2.16012414,3302.6,3302.5,0.364]
[1642390436460,2.16012414,3302.6,3302.5,1.70807277]
[1642390437060,2.95,3302.7,3302.5,1.70807277]
[1642390438669,2.95,3302.7,3302.6,2.76571192]
[1642390438865,2.95,3302.7,3302.6,4.314]
[1642390439065,2.95,3302.7,3302.6,7.12029807]
[1642390439410,2.95,3302.7,3302.6,7.11373198]
[1642390440010,2.95,3302.7,3302.6,3.12318245]
[1642390440215,2.95,3302.7,3302.6,0.364]
[1642390440415,2.95,3302.7,3302.6,0.70729264]
[1642390442416,2.95,3302.7,3302.6,0.364]
[1642390442915,2.95,3302.7,3302.6,3.414]
[1642390443364,2.95,3302.7,3302.6,0.60624188]
[1642390444564,0.00170527,3303.0,3302.6,14.07079346]
[1642390444767,0.00170527,3303.0,3302.9,0.01282965]
[1642390444966,3.91100866,3304.3,3302.9,0.01282965]
[1642390444967,2.80859118,3304.2,3302.9,0.01282965]
[1642390445166,3.91100866,3304.3,3302.9,0.01282965]
[1642390445366,0.00852635,3304.2,3302.9,0.01282965]
[1642390445568,1.33565494,3304.1,3303.4,1.5580909]
[1642390445766,1.34361287,3304.1,3303.5,0.364]
[1642390445968,1.31876238,3303.6,3303.5,0.364]
[1642390446169,1.31876238,3303.6,3302.7,4.5849]
[1642390446371,1.32387819,3303.6,3302.7,0.364]
[1642390446568,1.32387819,3303.6,3302.5,0.00113684]
[1642390446569,0.01267468,3303.3,3302.5,0.00113684]
[1642390446771,0.01267468,3303.3,3302.2,1.22414772]
[1642390446772,0.01211806,3302.6,3302.2,1.22414772]
[1642390447021,0.01211806,3302.6,3301.5,2.29381043]
[1642390447022,1.09333732,3302.5,3302.3,0.00113685]
[1642390447219,18.68333732,3302.5,3302.3,0.00113685]
[1642390447422,0.01211806,3302.6,3301.9,0.00341054]
[1642390447620,0.3,3303.0,3301.9,0.00341054]
[1642390448020,0.00227369,3302.9,3301.8,0.00397897]
[1642390448221,0.7571,3302.7,3301.8,0.00397897]
[1642390448621,1.0570953,3302.6,3301.8,0.00397897]
[1642390448822,0.3,3302.5,3301.8,0.00397897]
[1642390449025,3.24930334,3302.5,3301.8,0.00397897]
[1642390449221,3.24930334,3302.5,3301.4,3.8113]
[1642390449222,17.59,3302.4,3301.7,0.00454739]
[1642390449425,20.62707343,3302.3,3301.7,0.00454739]
[1642390449622,0.3,3302.2,3301.5,0.00568424]
[1642390449823,2.95005591,3302.1,3301.5,0.00568424]
[1642390450021,1.34727269,3302.0,3301.5,0.00568424]
[1642390450224,0.7572161,3302.2,3301.5,0.00568424]
[1642390450524,2.06622154,3302.3,3301.5,0.00568424]
[1642390451163,20.51384609,3302.2,3301.5,0.00568424]
[1642390451365,21.27100559,3302.2,3301.5,0.00568424]
[1642390451568,21.57100559,3302.2,3301.5,0.00568424]
[1642390451764,17.59,3302.1,3301.5,0.00568424]
[1642390452263,17.59,3302.1,3301.3,0.00682109]
[1642390452563,19.10459,3302.1,3301.3,0.00682109]
[1642390452964,13.5,3301.5,3301.3,0.00682109]
[1642390454169,2.87883424,3301.4,3301.3,0.00682109]
[1642390454613,13.5,3301.5,3301.3,0.00682109]
[1642390454814,3.09920739,3301.4,3301.3,0.00682109]
[1642390455216,20.68920739,3301.4,3301.3,0.00682109]
[1642390455414,10.75,3301.3,3300.0,0.83280072]
[1642390455620,0.01291569,3300.1,3298.7,5.11576562]
[1642390455816,4.11439907,3300.1,3298.7,5.11576562]
[1642390456017,0.01237663,3299.2,3298.7,5.11576562]
[1642390456215,0.01237663,3299.2,3298.8,3.86421459]
[1642390456415,0.01237663,3299.2,3298.9,1.23119866]
[1642390456616,0.7578879,3299.1,3298.8,3.72785675]
[1642390456819,17.89,3299.0,3298.8,3.72785675]
[1642390457017,17.59,3299.0,3298.8,3.72785675]
[1642390457419,19.1466,3299.0,3298.8,3.72785675]
[1642390457615,19.1466,3299.0,3298.5,0.11483642]
[1642390457616,2.46553904,3298.9,3298.5,0.11483642]
[1642390457814,0.364,3298.8,3298.5,0.11483642]
[1642390458015,0.364,3298.8,3298.7,0.00113685]
[1642390459261,0.364,3298.8,3298.6,0.00170527]
[1642390459465,0.364,3298.8,3297.9,7.38242298]
[1642390459466,1.83191438,3298.8,3297.9,7.38291096]
[1642390459661,0.364,3298.8,3297.9,7.38291096]
[1642390459862,0.00113685,3299.1,3298.0,0.00341054]
[1642390460261,0.00227369,3299.0,3298.0,0.00341054]
[1642390460460,0.00227369,3299.0,3297.9,7.38291096]
[1642390460461,0.00227369,3299.0,3297.9,7.0863215]
[1642390460664,0.00511581,3298.9,3297.9,7.0863215]
[1642390460860,0.0128281,3299.6,3297.9,7.0863215]
[1642390460861,0.01080917,3299.6,3298.1,0.75768]
[1642390461065,0.27639993,3299.8,3298.1,0.75768]
[1642390461262,0.00341054,3299.5,3298.2,3.03164622]
[1642390461464,0.00341054,3299.5,3298.0,3.217413]
[1642390461663,0.00284212,3299.4,3298.3,0.00341054]
[1642390461914,0.00284212,3299.4,3298.1,0.00454739]
[1642390462121,0.27639993,3299.8,3298.1,0.76222739]
[1642390462315,0.27639993,3299.8,3298.2,3.00099604]
[1642390462516,0.00454739,3299.7,3298.2,3.004975]
[1642390462719,0.00454739,3299.7,3298.3,1.00341054]
[1642390462920,0.00397897,3299.6,3298.4,0.01674838]
[1642390463117,0.00397897,3299.6,3298.4,0.00284212]
[1642390463316,0.00341054,3299.5,3298.5,0.00227369]
[1642390463515,0.00341054,3299.5,3298.9,1.41448448]
[1642390463720,1.46381972,3300.4,3299.0,5.3924]
[1642390463721,0.00284212,3299.4,3299.0,5.3924]
[1642390464015,0.00284212,3299.4,3298.9,1.41448448]
[1642390464016,0.00284212,3299.4,3299.3,1.13540984]
[1642390464216,1.46381972,3300.4,3298.9,1.41448448]
[1642390464416,0.00284212,3299.4,3298.9,1.41448448]
[1642390464819,0.0022737,3299.3,3298.9,1.41448448]
[1642390465216,0.00170527,3299.2,3298.9,1.41448448]
[1642390465417,0.00170527,3299.2,3298.9,1.36448448]
[1642390465672,2.85109433,3300.2,3299.1,1.11054878]
[1642390465862,1.35766,3300.3,3299.1,1.11054878]
[1642390466061,0.00682108,3300.1,3299.1,1.11054878]
[1642390466263,0.00682108,3300.1,3299.2,0.01796983]
[1642390466461,0.00625266,3300.0,3299.1,1.11054878]
[1642390466860,3.33708946,3300.5,3299.1,1.11054878]
[1642390466861,0.00568424,3299.9,3299.1,1.11054878]
[1642390467263,0.00511581,3299.8,3299.6,1.43641302]
[1642390467663,0.00454739,3299.7,3299.6,1.43641302]
[1642390468562,0.00454739,3299.7,3299.2,0.75747]
[1642390468764,0.00454739,3299.7,3299.4,0.437]
[1642390468971,0.00397897,3299.6,3299.5,1.17841385]
[1642390470118,0.00397897,3299.6,3299.5,2.52974285]
[1642390470317,0.00397897,3299.6,3299.5,4.48135285]
[1642390470514,2.76955552,3301.1,3299.6,0.0227812]
[1642390470715,5.169,3301.3,3299.7,0.437]
[1642390470914,0.00795792,3301.0,3299.8,0.437]
[1642390471120,0.00795792,3301.0,3298.9,3.1794]
[1642390471121,0.01220209,3299.9,3298.3,0.00341054]
[1642390471319,0.0125916,3298.8,3298.4,5.7052]
[1642390471619,0.0121334,3299.3,3298.4,5.7052]
[1642390471815,2.76955552,3299.9,3298.5,0.00625266]
[1642390472015,1.42360594,3299.4,3298.5,1.20763206]
[1642390472219,1.42360594,3299.4,3298.5,0.00625266]
[1642390472414,1.42360594,3299.4,3298.6,0.00568424]
[1642390472619,1.42360594,3299.4,3298.7,0.0099118]
[1642390473178,1.42360594,3299.4,3298.8,0.00454739]
[1642390473179,1.38492217,3299.3,3298.8,0.00454739]
[1642390473368,4.39222835,3299.3,3298.8,0.00454739]
[1642390473668,1.15537454,3298.9,3298.8,0.00454739]
[1642390473869,1.45537454,3298.9,3298.8,0.00454739]
[1642390474067,1.75537454,3298.9,3298.8,0.00454739]
[1642390477515,1.75537454,3298.9,3298.7,3.0055374]
[1642390477718,4.62759044,3298.9,3298.7,3.0055374]
[1642390477918,1.75537454,3298.9,3298.7,3.0055374]
[1642390478115,4.59929204,3298.9,3298.7,3.0055374]
[1642390478316,1.15537454,3298.9,3298.7,3.0055374]
[1642390478516,0.437,3299.0,3298.7,3.0055374]
[1642390478717,1.38492217,3299.3,3298.7,3.0055374]
[1642390478917,1.38492217,3299.3,3298.8,5.3337]
[1642390479216,0.00227369,3299.2,3298.8,5.3337]
[1642390479616,1.3687149,3299.1,3298.8,5.3337]
[1642390479819,1.6687149,3299.1,3298.8,5.3337]
[1642390480018,0.30113684,3299.0,3298.8,5.3337]
[1642390480218,0.00113684,3299.0,3298.8,5.3337]
[1642390484273,0.00113684,3299.0,3298.9,2.75021911]
[1642390484521,0.00113684,3299.0,3298.9,4.45]
[1642390485319,0.00113684,3299.0,3298.9,1.53667763]
[1642390486320,0.00113684,3299.0,3298.9,5.78667763]
[1642390486719,0.00113684,3299.0,3298.9,1.53667763]